Cogmind - Beta 14 *** ADVENTURER MODE // 2024.08.15 @ 19:17:08 Player: LegoMDS Result: Destroyed by D-53 Grenadier with Mini Grenade Launcher Performance ------------- Evolutions (0) 0 Regions Visited (4) 800 Robots Destroyed (30) 150 Value Destroyed (648) 648 Prototype IDs (23) 460 Alien Tech Used (0) 0 Bonus (300) 300 TOTAL SCORE: 2358 Bonus ------- Aligned with FarCom 300 Cogmind --------- Core Integrity 0/250 Matter 138/300 Energy 265/265 System Corruption 0% Temperature Cool (0) Movement Walking (190) Ox1 Location -9/Mines Parts ------- > --- POWER (1) -------- Improved Ion Engine > --- PROPULSION (2) --- Improved Aluminum Leg > --- UTILITY (2) ------ Medium Storage Unit Targeting Computer > --- WEAPON (2) ------- Grenade Launcher > --- INVENTORY (10) --- Light Nuclear Core Aluminum Leg Aluminum Leg Aluminum Leg Cloak of Protection Tractor Beam Light Assault Rifle Katana Peak State ------------ > --- POWER ------------ Ion Engine > --- PROPULSION ------- Aluminum Leg Aluminum Leg > --- UTILITY ---------- Medium Storage Unit Cloak of Protection > --- WEAPON ----------- Light Cannon Mining Claw > --- INVENTORY -------- Improved Ion Engine Light Nuclear Core Aluminum Leg Aluminum Leg Targeting Computer Tractor Beam Light Assault Rifle Grenade Launcher Grenade Launcher [Rating: 15] Favorites ----------- Power Ion Engine Engine Ion Engine Propulsion Aluminum Leg Leg Aluminum Leg Utility Medium Storage Unit Device Tractor Beam Storage Medium Storage Unit Processor Targeting Computer Weapon Medium Laser Energy Gun Medium Laser Ballistic Gun Light Assault Rifle Ballistic Cannon Light Cannon Launcher Grenade Launcher Slashing Weapon Mining Claw Build | -11 -10 -10 -10 -9 ------- Run | Yrd Mat Min Exi Min Slots Evolved . | . . . . . Power . | . . . . . Propulsion . | . . . . . Utility . | . . . . . Weapon . | . . . . . Parts Attached 35 | 6 2 10 2 15 Power 3 | 1 . 1 . 1 Engine 3 | 1 . 1 . 1 Core . | . . . . . Reactor . | . . . . . Propulsion 8 | 2 . 2 . 4 Treads . | . . . . . Leg 8 | 2 . 2 . 4 Wheel . | . . . . . Hover . | . . . . . Flight . | . . . . . Utility 8 | 1 2 2 2 1 Device 5 | . 1 2 2 . Storage 2 | 1 1 . . . Processor 1 | . . . . 1 Hackware . | . . . . . Protection . | . . . . . Artifact . | . . . . . Weapon 16 | 2 . 5 . 9 Energy Gun 2 | 2 . . . . Energy Cannon . | . . . . . Ballistic Gun 4 | . . 2 . 2 Ballistic Cannon 4 | . . 1 . 3 Launcher 4 | . . 1 . 3 Special Weapon . | . . . . . Impact Weapon . | . . . . . Slashing Weapon 2 | . . 1 . 1 Piercing Weapon . | . . . . . Special Melee Weapon . | . . . . . Unidentified Prototypes . | . . . . . Parts Lost 10 | . 1 4 . 5 Power 1 | . . . . 1 Propulsion 4 | . . 2 . 2 Utility 2 | . 1 1 . . Weapon 3 | . . 1 . 2 Highest Loss Streak 4 | . 1 4 . 3 To Critical Strikes . | . . . . . Average Slot Usage (%) 95 | . 93 94 100 94 Engine 13 | . 14 14 14 13 Leg 27 | . 28 27 28 24 Device 11 | . 8 12 14 7 Storage 14 | . 14 14 14 14 Energy Gun 8 | . 28 7 . . Ballistic Gun 2 | . . 3 . 4 Ballistic Cannon 6 | . . 3 14 10 Slashing Weapon 8 | . . 9 14 8 Peak Build Rating 15 | 6 7 8 15 11 Average Rating 7 | 4 6 7 8 8 On Entrance 5 | . 6 6 8 8 Naked Turns . | . . . . . Heaviest Build 24 | 14 24 21 21 22 Greatest Support 23 | 20 20 20 20 23 Greatest Overweight (x) 6 | . 1 1 1 6 Average Overweight (x) . | . . . 1 1 Largest Inventory Capacity 10 | 8 10 10 10 10 Average Capacity 9 | 6 8 10 10 10 Most Carried 10 | 4 8 9 9 10 Average Carried 7 | 1 6 7 8 9 Final Capacity 10 | 8 10 10 10 10 Final Carried 9 | 2 8 8 9 8 Class Distribution -------------------- 65% | Scavenger-Mutant 34% | Mutant Dominant Class ---------------- Mutant | -10/Materials Scavenger-Mutant | -10/Mines Scavenger-Mutant | -10/Exiles Scavenger-Mutant | -9/Mines Resources | -11 -10 -10 -10 -9 ----------- Run | Yrd Mat Min Exi Min Matter Collected 474 | 203 77 107 . 87 Remotely 60 | . . 60 . . Salvage Created 762 | . 387 223 . 152 Parts 57 | . 24 9 . 24 Haulers Intercepted 1 | . 1 . . . Recyclers Shooed 1 | . . . . 1 Parts Field Recycled . | . . . . . Retrieved Matter . | . . . . . Parts Self-Destructed . | . . . . . Prevented . | . . . . . Kills | -11 -10 -10 -10 -9 ------- Run | Yrd Mat Min Exi Min Combat Hostiles Destroyed 23 | . 8 7 . 8 Melee 1 | . . 1 . . Guns 16 | . 8 6 . 2 AOE 6 | . . . . 6 Classes Destroyed 11 | . 5 . . 6 Worker 1 | . . . . 1 Builder 1 | . 1 . . . Tunneler 1 | . . . . 1 Hauler 1 | . 1 . . . Recycler 1 | . . . . 1 Watcher 3 | . 3 . . . Swarmer 10 | . 3 3 . 4 Grunt 10 | . 5 4 . 1 Duelist 1 | . . . . 1 Demolisher 1 | . . . . 1 Assembled 1 | . . . . 1 Best Kill Streak 5 | . 5 3 . 5 Combat Bots Only 5 | . 3 3 . 5 Max Kills in Single Turn 4 | . 2 2 . 4 Gunslinging 1 | . 1 1 . . Exploded 4 | . . . . 4 Melee 1 | . . 1 . . Uniques/NPCs Destroyed . | . . . . . Combat | -11 -10 -10 -10 -9 -------- Run | Yrd Mat Min Exi Min Hostile Shots Fired 110 | . 28 51 . 31 Missed 24 | . 5 14 . 5 Damage Taken 1311 | . 189 376 . 746 Core 260 | . 14 121 . 125 Absorbed by Shields . | . . . . . Ignored by Resistances 380 | . 62 114 . 204 Core Remaining (%) 100 | 100 . . . . Volleys Fired 88 | . 26 40 . 22 Largest 2 | . 2 2 . 2 Hottest 100 | . 100 100 . 65 Shots Fired 139 | . 52 61 . 26 Gun 125 | . 52 61 . 12 Cannon 8 | . . . . 8 Launcher 6 | . . . . 6 Special . | . . . . . Kinetic 47 | . . 27 . 20 Thermal 86 | . 52 34 . . Explosive 6 | . . . . 6 Electromagnetic . | . . . . . Robot Hit Streak 12 | . 12 12 . 12 Robot Miss Streak 4 | . 1 4 . 1 Penetration Max . | . . . . . Secondary Targets 5 | . 3 2 . . Max Gunslinging Chain 1 | . 1 1 . . Shots Hit Robots 115 | . 38 50 . 27 Core Hits 62 | . 20 12 . 30 Critical Kills . | . . . . . Critical Parts Destroyed . | . . . . . Critical Strikes 7 | . 3 4 . . Burn 7 | . 3 4 . . Melee Attacks 5 | . . 1 . 4 Impact . | . . . . . Slashing 5 | . . 1 . 4 Piercing . | . . . . . Sneak Attacks . | . . . . . Combat Hostiles . | . . . . . Follow-up Attacks . | . . . . . Damage Inflicted 1686 | . 483 530 . 673 Guns 1068 | . 483 508 . 77 Cannons 135 | . . . . 135 Explosions 410 | . . . . 410 Melee 73 | . . 22 . 51 Ramming . | . . . . . Kinetic 405 | . . 193 . 212 Thermal 798 | . 483 315 . . Explosive 410 | . . . . 410 Electromagnetic . | . . . . . Impact . | . . . . . Slashing 73 | . . 22 . 51 Piercing . | . . . . . Highest Corruption . | . . . . . Average Corruption . | . . . . . Corruption Purged . | . . . . . Corruption Blocked . | . . . . . Overload Shots . | . . . . . Overflow Damage 14 | . . 14 . . Projectiles . | . . . . . Explosions . | . . . . . Melee 14 | . . 14 . . Knockbacks 3 | . . . . 3 Impact . | . . . . . Kinetic 3 | . . . . 3 Secondary . | . . . . . Self-Inflicted Damage . | . . . . . Shots . | . . . . . Rammed . | . . . . . Targets Rammed . | . . . . . Kicked . | . . . . . Crushed . | . . . . . Highest Temperature 456 | . 456 273 . 18 Average Temperature 127 | . 154 110 . 6 Received Heat Transfer 411 | . 123 282 . 6 Effects 6 | . 3 3 . . Shutdowns 1 | . 1 . . . Energy Bleed 1 | . 1 . . . Interference 3 | . . 3 . . Damage (minor) 1 | . 1 . . . Siege Activations . | . . . . . Robots Corrupted . | . . . . . Combat Hostiles . | . . . . . Parts Fried . | . . . . . Impact Corruptions . | . . . . . Robots Melted . | . . . . . Combat Hostiles . | . . . . . Parts Melted 8 | . 5 3 . . Heat Transferred 2886 | . 1665 1221 . . Parts Sabotaged . | . . . . . Parts Stolen . | . . . . . Parts Stripped . | . . . . . Power Chain Reactions . | . . . . . Alert | -11 -10 -10 -10 -9 ------- Run | Yrd Mat Min Exi Min Peak Influence 233 | . 233 150 . 161 Initial 10 | . . 10 . . Average 52 | . 120 27 . 56 Maximum Alert Level 1 | . 1 . . . Low Security (%) 95 | 100 81 100 . 100 Level 1 4 | . 18 . . . Level 2 . | . . . . . Level 3 . | . . . . . Level 4 . | . . . . . Level 5 . | . . . . . High Security . | . . . . . Max Security . | . . . . . Squads Dispatched . | . . . . . Investigation . | . . . . . Extermination . | . . . . . Reinforcement . | . . . . . Assault . | . . . . . Garrison . | . . . . . Intercept . | . . . . . Searches Triggered . | . . . . . Construction Impeded . | . . . . . Haulers Reinforced . | . . . . . Active Scanning Responses . | . . . . . Cargo Convoy Interrupts . | . . . . . Stealth | -11 -10 -10 -10 -9 --------- Run | Yrd Mat Min Exi Min Distress Signals 1 | . 1 . . . Communications Jammed . | . . . . . Distress Signals . | . . . . . Times Spotted 27 | . 11 7 . 9 Peak Tracking Total 3 | . 3 3 . 3 Tactical Retreats . | . . . . . Traps | -11 -10 -10 -10 -9 ------- Run | Yrd Mat Min Exi Min Traps Triggered . | . . . . . Indirectly . | . . . . . Trap Hack Attempts . | . . . . . Triggered . | . . . . . Disarmed . | . . . . . Reprogrammed . | . . . . . Reused . | . . . . . Traps Extracted . | . . . . . Installed . | . . . . . Triggered . | . . . . . Machines | -11 -10 -10 -10 -9 ---------- Run | Yrd Mat Min Exi Min Machines Disabled . | . . . . . Max in Single Turn . | . . . . . Machines Repaired . | . . . . . Machines Dismantled . | . . . . . Machines Sabotaged . | . . . . . Overloaded Fab Kills . | . . . . . Hacking | -11 -10 -10 -10 -9 --------- Run | Yrd Mat Min Exi Min Machines Accessed 2 | . . 1 1 . Terminals 1 | . . 1 . . Fabricators . | . . . . . Repair Stations . | . . . . . Recycling Units . | . . . . . Scanalyzers . | . . . . . Garrison Access . | . . . . . Total Hacks 3 | . . 2 1 . Successful 2 | . . 1 1 . Failed 1 | . . 1 . . Catastrophic . | . . . . . Database Lockouts . | . . . . . Manual 1 | . . . 1 . Terminals 2 | . . 2 . . Fabricators . | . . . . . Repair Stations . | . . . . . Recycling Units . | . . . . . Scanalyzers . | . . . . . Garrison Access . | . . . . . Terminal Hacks 2 | . . 1 1 . Record 1 | . . 1 . . Derelict Proto ID Bank 1 | . . . 1 . Fabricator Hacks . | . . . . . Repair Station Hacks . | . . . . . Recycling Unit Hacks . | . . . . . Scanalyzer . | . . . . . Garrison Access Hacks . | . . . . . Unauthorized Hacks . | . . . . . Terminals . | . . . . . Fabricators . | . . . . . Repair Stations . | . . . . . Recycling Units . | . . . . . Scanalyzers . | . . . . . Garrison Access . | . . . . . Data Cores Recovered . | . . . . . Used . | . . . . . Hacking Detections 1 | . . 1 . . Full Trace Events . | . . . . . Feedback Events . | . . . . . Feedback Blocked . | . . . . . Robot Schematics Acquired . | . . . . . Robots Built . | . . . . . Authchips . | . . . . . Time . | . . . . . Total Robot Build Rating . | . . . . . Part Schematics Acquired . | . . . . . Parts Built . | . . . . . Authchips . | . . . . . Time . | . . . . . Total Part Build Rating . | . . . . . Parts Repaired . | . . . . . Time . | . . . . . Parts Recycled . | . . . . . Recycled Matter . | . . . . . Retrieved Matter . | . . . . . Retrieved Components . | . . . . . Parts Scanalyzed . | . . . . . Part Schematics Acquired . | . . . . . Parts Damaged . | . . . . . Bothacking | -11 -10 -10 -10 -9 ------------ Run | Yrd Mat Min Exi Min Used RIF Installer . | . . . . . Robots Hacked . | . . . . . Non-combat . | . . . . . Combat . | . . . . . Robot Hacks Applied . | . . . . . Relay Couplers Released . | . . . . . Fabnet Peak Effective % . | . . . . . Robots Rewired . | . . . . . Allies Hacked . | . . . . . Hacks Repelled . | . . . . . Allies | -11 -10 -10 -10 -9 -------- Run | Yrd Mat Min Exi Min Total Allies . | . . . . . Largest Group . | . . . . . Highest-Rated Group . | . . . . . Highest-Rated Ally . | . . . . . Total Orders . | . . . . . Ally Attacks . | . . . . . Total Damage . | . . . . . Kills . | . . . . . Allies Corrupted . | . . . . . Allies Melted . | . . . . . Intel | -11 -10 -10 -10 -9 ------- Run | Yrd Mat Min Exi Min Robot Analysis Total . | . . . . . Derelict Logs Recovered 1 | . . 1 . . Drone Launches . | . . . . . Drone Recoveries . | . . . . . Exploration | -11 -10 -10 -10 -9 ------------- Run | Yrd Mat Min Exi Min Turns Passed 2684 | 64 470 1242 599 309 Spaces Moved 1517 | 45 316 740 314 102 Core 12 | 5 . . . 7 Treads . | . . . . . Legs 1505 | 40 316 740 314 95 Wheels . | . . . . . Hover . | . . . . . Flight . | . . . . . Fastest Speed 50 | 50 120 120 190 120 Average Speed 152 | 112 120 148 190 179 Slowest Speed 350 | 120 190 190 190 350 Overloaded Moves . | . . . . . Propulsion Burnouts . | . . . . . Robots Hopped . | . . . . . Cave-ins Triggered . | . . . . . Exploration Rate (%) 49 | 4 51 99 72 21 Regions Visited 4 Branch Regions 3 Pre-discovered Areas 2 | . . 1 . 1 Known Exits Taken . | . . . . . Unknown Exits Taken 4 | 1 1 1 1 . Scrap Searched 2 | . . 2 . . Spaces Dug . | . . . . . Terrain Destroyed 34 | . . . . 34 Melee . | . . . . . Projectile . | . . . . . AOE 34 | . . . . 34 Terrain Rammed . | . . . . . Walls Destroyed . | . . . . . Machines Disabled . | . . . . . Actions | -11 -10 -10 -10 -9 --------- Run | Yrd Mat Min Exi Min Total 1744 | 58 354 823 316 193 Wait 67 | . 1 21 . 45 Move 1513 | 44 315 739 313 102 Hop . | . . . . . Pick Up 28 | 8 8 8 1 3 Fast Attach 3 | . 1 . . 2 Attach 18 | 6 1 7 . 4 Detach 1 | . . 1 . . Swap 14 | . . 3 2 9 Drop 7 | . 2 3 . 2 Fire 88 | . 26 40 . 22 Melee 5 | . . 1 . 4 Ram . | . . . . . Kick . | . . . . . Crush . | . . . . . Escape Stasis . | . . . . . Rewire . | . . . . . Trap . | . . . . . Miscellaneous . | . . . . . Route ------- -11/Scrapyard -10/Materials (discovered 4 exits: [*Mat] / *Min x2 / [*Sub]) -10/Mines (discovered 3 exits: [*Mat x2] / *Exi) -10/Exiles -9/Mines History --------- Turn | Location | Event 13 | -11/Scrapyard | Discovered new exit (range 16) 65 | -11/Scrapyard | Entered Materials 65 | -10/Materials | Discovered new exit (range 7) 115 | -10/Materials | Discovered new exit (range 14) 225 | -10/Materials | Discovered new exit (range 6) 301 | -10/Materials | Build established: Mutant 433 | -10/Materials | Discovered new exit (range 9) 535 | -10/Materials | Entered Mines 600 | -10/Mines | Learned location of Zion (-7) 602 | -10/Mines | Discovered new exit (range 5) 915 | -10/Mines | Core integrity fell below 50% 938 | -10/Mines | Discovered new exit (range 9) 947 | -10/Mines | Lost 4 parts (2n1u1w) 1134 | -10/Mines | YI-UF0 nonchalantly dropped a Grenade Launcher on the ground 1147 | -10/Mines | Joined a pair of Derelicts in attacking an 0b10 outpost 1210 | -10/Mines | Build established: Scavenger-Mutant 1769 | -10/Mines | Deemed a non-threat by the Exiles lab entrance 1769 | -10/Mines | Discovered new exit (range 5) 1777 | -10/Mines | Entered Exiles 1827 | -10/Exiles | Met 8R-AWN 1857 | -10/Exiles | Met EX-HEX 1912 | -10/Exiles | Met EX-BIN 1933 | -10/Exiles | Aligned with FarCom system 1935 | -10/Exiles | Given EX-Vault access code 1983 | -10/Exiles | Opened EX-Vault 1994 | -10/Exiles | Found Cloak of Protection 2036 | -10/Exiles | Warned to stay clear of 0b10 Research branches 2215 | -10/Exiles | Met EX-DEC 2355 | -10/Exiles | Discovered new exit (range 14) 2376 | -10/Exiles | Left Exiles lab with Cloak of Protection 2376 | -10/Exiles | Entered Mines 2377 | -9/Mines | Learned location of Storage (-7) 2649 | -9/Mines | Assembled infested the area 2678 | -9/Mines | Core integrity fell below 20% 2685 | -9/Mines | Destroyed by D-53 Grenadier with Mini Grenade Launcher Last Messages --------------- Acquired 6 matter. K-01 Serf collects debris. K-01 Serf destroyed. C-30 ARC bursts open, deploying its payload. D-53 Grenadier unfolds itself. R-06 Scavenger destroyed. The unstable cave ceiling collapses. T-07 Excavator destroyed. D-53 Grenadier knocked back. as-58790 destroyed. Lgt. Cannon destroyed. Grenade Launcher destroyed. as-41257 destroyed. The unstable cave ceiling collapses. R-06 Scavenger destroyed. Aluminum Leg destroyed. The unstable cave ceiling collapses. D-53 Grenadier destroyed. The unstable cave ceiling collapses. U-05 Engineer lays Concrete. Map ----- +----------------------------------------------------+ | ??????????????????????????????? #????????????????? | | ?????????????????????????????? ##???????????????? | | ?????????????????????????????? ????????????????? | | ?????????????????????????????? #????????????????? | | ???????????????????????????### #????????????????? | | #???????????####?????????## = ##???????????????? | | ##?????????## ##????????#[ = ##??????????????? | | #?????????# ##???????# #??????????????? | | #????????## ######### #??????????????? | | #???????## ## #???????????????? | | #???????# ####### ## #????????????????? | | ######### ##?????# ##k #??????????????????? | | ######## ## #????????????????????? | | ######### #????????????????????? | | ##???????## ############! ##???????????????????? | | ##????????#######??### ##%! #???????????????????? | | ##??????????## ### #????###????????????? | | #??????????# # [ =!#?## ####?????????? | | # #??????????# # = # ##### #???? | | ?###??????????# %d # a #???? | | ??????????????# u % % #???? | | ?????????????# ### ## % #????????? | | ?????????????# ?????#* ######????????? | | ????????????????????#%[ ######?????????????? | | ?????????????# t ##* #?????????????????? | | ?????????????# u @ #?????????????????? | | ?????????????# #### #?????????????????? | | ????????????????????# #?????????????????? | | ????????????????????## #?????????????????? | | ?????????????????????## #??????????????????? | | ??????????????????????#### #??????????????????? | | ????????????????????????????##???????????????????? | | ?????????????????????????????????????????????????? | | ?????????????????????????????????????????????????? | | ?????????????????????????????????????????????????? | | ?????????????????????????????????????????????????? | | ?????????????????????????????????????????????????? | | ?????????????????????????????????????????????????? | | ?????????????????????????????????????????????????? | | ?????????????????????????????????????????????????? | | ?????????????????????????????????????????????????? | | ?????????????????????????????????????????????????? | | ?????????????????????????????????????????????????? | | ?????????????????????????????????????????????????? | | ?????????????????????????????????????????????????? | | ?????????????????????????????????????????????????? | | ?????????????????????????????????????????????????? | | ?????????????????????????????????????????????????? | | ?????????????????????????????????????????????????? | | ?????????????????????????????????????????????????? | +----------------------------------------------------+ Best States ------------- Heat Dissipation 25 Energy Generation 12 Energy Capacity 265 Matter Stores 300 Matter Capacity 300 Sight Range 16 Robot Scan Range 14 Terrain Scan Density 10 ECM Strength 1 Resistance: KI 20 Resistance: TH 20 Resistance: EX 20 Resistance: EM 20 Resistance: I 20 Resistance: S 20 Resistance: P 20 Evasion (%) 55 Targeting Accuracy 5 Offensive Hacking 10 Item Schematics ----------------- None Robot Schematics ------------------ None Fabricated ------------ Nothing Alien Tech Used ----------------- None Achievements -------------- None Challenges ------------ None Game ------ Seed PowerWeaponsField Manual? 0 Play Time 00:17:02 Cumulative 22.2 hours Start 2024.08.15 @ 18:59:45 End 2024.08.15 @ 19:17:08 Sessions 1 Manual Loads 0 Difficulty Adventurer Special Mode None Game No. 27 Rogue 13 Adventurer 14 Explorer 0 Win Type - Total 0 Types 0/0/0/0/0/0/0/0/0 Lore% 23 Gallery% 28 Achievement% 27 Wizard Run 0 Options --------- Layout 1 ASCII 0 Keyboard 0 Movement Mouse Keybinds 0 Fullscreen 1 Font 24/Smallcaps Map View 50x35 Zoom Use 0% Tactical HUD 0 Map Filters NONE Filters NONE Steam 1 RUN: c9fa692b-6b74-4d9a-be2a-881d19dbafae